[Event "*** Titled Tuesday Blitz"]
[Site "Chess.com"]
[Date "2020.11.24"]
[Round "8"]
[White "SergeyShtyka"]
[Black "vinniethepooh"]
[Result "1/2-1/2"]
[WhiteElo "2408"]
[BlackElo "2614"]
[TimeControl "180+1"]
[EndTime "11:46:48 PST"]
[Termination "Game drawn by repetition"]

1. e4 {[%clk 0:03:00.9]} 1... c5 {[%clk 0:02:59.7]} 2. Nf3 {[%clk 0:03:00.7]}
2... d6 {[%clk 0:03:00.3]} 3. d4 {[%clk 0:03:01.2]} 3... cxd4 {[%clk 0:03:01.2]}
4. Nxd4 {[%clk 0:03:02.1]} 4... Nf6 {[%clk 0:03:01.8]} 5. Nc3 {[%clk 0:03:02.6]}
5... a6 {[%clk 0:03:02.5]} 6. Bc4 {[%clk 0:03:02.4]} 6... e6 {[%clk 0:03:02.1]}
7. O-O {[%clk 0:03:02.2]} 7... Nbd7 {[%clk 0:03:02.6]} 8. Be3 {[%clk 0:03:01.3]}
8... Nc5 {[%clk 0:02:59.7]} 9. Bd3 {[%clk 0:03:00.5]} 9... b5 {[%clk 0:02:54.9]}
10. a3 {[%clk 0:03:00.2]} 10... Bb7 {[%clk 0:02:54.2]} 11. f3 {[%clk 0:02:56.1]}
11... Be7 {[%clk 0:02:53.8]} 12. b4 {[%clk 0:02:52.6]} 12... Nxd3 {[%clk
0:02:33.2]} 13. cxd3 {[%clk 0:02:52.7]} 13... O-O {[%clk 0:02:28.2]} 14. Rc1
{[%clk 0:02:52.4]} 14... Rc8 {[%clk 0:02:23.5]} 15. Qd2 {[%clk 0:02:52.1]} 15...
Qd7 {[%clk 0:02:13.1]} 16. Rc2 {[%clk 0:02:51.3]} 16... Rc7 {[%clk 0:02:11]} 17.
Rfc1 {[%clk 0:02:50.8]} 17... Rfc8 {[%clk 0:02:11.6]} 18. Nce2 {[%clk
0:02:47.5]} 18... h6 {[%clk 0:01:57.5]} 19. Rxc7 {[%clk 0:02:43.4]} 19... Rxc7
{[%clk 0:01:58.4]} 20. Rxc7 {[%clk 0:02:43.1]} 20... Qxc7 {[%clk 0:01:59.3]} 21.
Qc3 {[%clk 0:02:38.1]} 21... Qd7 {[%clk 0:01:17.8]} 22. Bf2 {[%clk 0:02:28.7]}
22... Ne8 {[%clk 0:01:17.6]} 23. Nb3 {[%clk 0:02:24.9]} 23... Bf6 {[%clk
0:01:12.7]} 24. Bd4 {[%clk 0:02:23.9]} 24... Bxd4+ {[%clk 0:01:05.8]} 25. Nexd4
{[%clk 0:02:20.6]} 25... Nf6 {[%clk 0:00:58.5]} 26. Na5 {[%clk 0:02:15.6]} 26...
Kh7 {[%clk 0:00:56.8]} 27. Nxb7 {[%clk 0:02:13]} 27... Qxb7 {[%clk 0:00:57.7]}
28. Qc6 {[%clk 0:01:58.7]} 28... Qxc6 {[%clk 0:00:53.4]} 29. Nxc6 {[%clk
0:01:58.3]} 29... Nd7 {[%clk 0:00:54.3]} 30. Kf2 {[%clk 0:01:50.7]} 30... Kg8
{[%clk 0:00:48.4]} 31. Ke3 {[%clk 0:01:46.2]} 31... Kf8 {[%clk 0:00:47.9]} 32.
f4 {[%clk 0:01:44.5]} 32... Ke8 {[%clk 0:00:45.1]} 33. g4 {[%clk 0:01:44]} 33...
g5 {[%clk 0:00:31.8]} 34. f5 {[%clk 0:01:32.7]} 34... e5 {[%clk 0:00:30.3]} 35.
d4 {[%clk 0:01:26.8]} 35... f6 {[%clk 0:00:25.1]} 36. d5 {[%clk 0:01:25.7]}
36... Nb6 {[%clk 0:00:23.1]} 37. Nb8 {[%clk 0:01:15.1]} 37... Kd8 {[%clk
0:00:20.1]} 38. Kd3 {[%clk 0:01:06.3]} 38... Nc4 {[%clk 0:00:14.8]} 39. Nc6+
{[%clk 0:00:52.5]} 39... Kd7 {[%clk 0:00:15.1]} 40. Na5 {[%clk 0:00:36.5]} 40...
Nxa3 {[%clk 0:00:08.2]} 41. Kc3 {[%clk 0:00:36.5]} 41... Kc7 {[%clk 0:00:06.1]}
42. Kb3 {[%clk 0:00:28.8]} 42... Nb1 {[%clk 0:00:06.1]} 43. Kc2 {[%clk
0:00:27.6]} 43... Na3+ {[%clk 0:00:06.1]} 44. Kb3 {[%clk 0:00:28.1]} 44... Nc4
{[%clk 0:00:04.7]} 45. Nxc4 {[%clk 0:00:27.9]} 45... bxc4+ {[%clk 0:00:05.6]}
46. Kxc4 {[%clk 0:00:23.8]} 46... Kb6 {[%clk 0:00:06.1]} 47. Kb3 {[%clk
0:00:20.1]} 47... Kb5 {[%clk 0:00:06]} 48. Kc3 {[%clk 0:00:20.3]} 48... a5
{[%clk 0:00:06.3]} 49. bxa5 {[%clk 0:00:19.3]} 49... Kxa5 {[%clk 0:00:07.2]} 50.
Kc4 {[%clk 0:00:16.2]} 50... Ka4 {[%clk 0:00:06.8]} 51. Kc3 {[%clk 0:00:13.1]}
51... Ka5 {[%clk 0:00:04.1]} 52. Kc4 {[%clk 0:00:13.3]} 52... Ka4 {[%clk
0:00:04.1]} 53. Kc3 {[%clk 0:00:13.6]} 53... Ka5 {[%clk 0:00:04]} 1/2-1/2

[Event "*** Titled Tuesday Blitz"]
[Site "Chess.com"]
[Date "2020.11.24"]
[Round "8"]
[White "Bathory44"]
[Black "Snegokhod"]
[Result "1-0"]
[WhiteElo "2567"]
[BlackElo "2434"]
[TimeControl "180+1"]
[EndTime "11:46:49 PST"]
[Termination "Bathory44 won by checkmate"]

1. e4 {[%clk 0:03:00.9]} 1... e5 {[%clk 0:02:55.9]} 2. Nf3 {[%clk 0:03:00.6]}
2... f6 {[%clk 0:02:55.8]} 3. Nxe5 {[%clk 0:02:59]} 3... fxe5 {[%clk 0:02:55.4]}
4. Qh5+ {[%clk 0:02:58.6]} 4... Ke7 {[%clk 0:02:55.4]} 5. Qxe5+ {[%clk
0:02:55.7]} 5... Kf7 {[%clk 0:02:55.5]} 6. Bc4+ {[%clk 0:02:56]} 6... d5 {[%clk
0:02:55.2]} 7. Bxd5+ {[%clk 0:02:55.7]} 7... Kg6 {[%clk 0:02:55.4]} 8. Qg3+
{[%clk 0:01:56.6]} 8... Qg5 {[%clk 0:02:54.7]} 9. Bf7+ {[%clk 0:01:52.4]} 9...
Kf6 {[%clk 0:02:54.3]} 10. Qf3+ {[%clk 0:01:43.2]} 10... Ke7 {[%clk 0:02:45.9]}
11. Bb3 {[%clk 0:01:35.9]} 11... Nf6 {[%clk 0:02:39]} 12. O-O {[%clk 0:01:34.8]}
12... Bg4 {[%clk 0:01:58.4]} 13. Qc3 {[%clk 0:01:30]} 13... Kd8 {[%clk
0:01:38.1]} 14. d4 {[%clk 0:01:27.6]} 14... Qg6 {[%clk 0:01:33.1]} 15. e5 {[%clk
0:01:25.6]} 15... Ne4 {[%clk 0:01:28.4]} 16. Qe3 {[%clk 0:01:25.4]} 16... Nc6
{[%clk 0:01:16.4]} 17. c3 {[%clk 0:01:22.9]} 17... Be7 {[%clk 0:01:11.6]} 18.
Bc2 {[%clk 0:01:14.7]} 18... Bf5 {[%clk 0:01:10.3]} 19. Re1 {[%clk 0:01:03.3]}
19... Ng5 {[%clk 0:00:57.6]} 20. Bxf5 {[%clk 0:00:54.2]} 20... Qxf5 {[%clk
0:00:57.5]} 21. f4 {[%clk 0:00:54.3]} 21... Ne6 {[%clk 0:00:51.6]} 22. b4 {[%clk
0:00:51.7]} 22... Bxb4 {[%clk 0:00:38.2]} 23. cxb4 {[%clk 0:00:48.2]} 23... Nxb4
{[%clk 0:00:38.5]} 24. Na3 {[%clk 0:00:36.4]} 24... Kc8 {[%clk 0:00:35.9]} 25.
Bd2 {[%clk 0:00:34]} 25... Nd5 {[%clk 0:00:34.8]} 26. Qb3 {[%clk 0:00:32.2]}
26... c6 {[%clk 0:00:34.8]} 27. Nc4 {[%clk 0:00:30.5]} 27... Rd8 {[%clk
0:00:27]} 28. Nd6+ {[%clk 0:00:29.6]} 28... Rxd6 {[%clk 0:00:27.3]} 29. exd6
{[%clk 0:00:30.5]} 29... b6 {[%clk 0:00:17.1]} 30. Rac1 {[%clk 0:00:28.5]} 30...
Kd7 {[%clk 0:00:15]} 31. Re5 {[%clk 0:00:27.5]} 31... Qg4 {[%clk 0:00:09.6]} 32.
Rxd5 {[%clk 0:00:24.6]} 32... cxd5 {[%clk 0:00:09.5]} 33. Qa4+ {[%clk
0:00:22.7]} 33... Kxd6 {[%clk 0:00:09.2]} 34. Bb4+ {[%clk 0:00:22.5]} 34... Nc5
{[%clk 0:00:07.8]} 35. dxc5+ {[%clk 0:00:22.6]} 35... Ke6 {[%clk 0:00:07.6]} 36.
Re1+ {[%clk 0:00:20.5]} 36... Kf7 {[%clk 0:00:07]} 37. Qc6 {[%clk 0:00:19.4]}
37... Rf8 {[%clk 0:00:05.4]} 38. Qxd5+ {[%clk 0:00:18.8]} 38... Kg6 {[%clk
0:00:04]} 39. Qg5+ {[%clk 0:00:17.9]} 39... Qxg5 {[%clk 0:00:03.7]} 40. fxg5
{[%clk 0:00:18.8]} 40... bxc5 {[%clk 0:00:04.3]} 41. Bxc5 {[%clk 0:00:18.7]}
41... Rf5 {[%clk 0:00:05]} 42. Bxa7 {[%clk 0:00:18.5]} 42... Ra5 {[%clk
0:00:05]} 43. Bd4 {[%clk 0:00:16.3]} 43... Rxa2 {[%clk 0:00:05.5]} 44. Re7
{[%clk 0:00:16.7]} 44... Kxg5 {[%clk 0:00:05.4]} 45. Rxg7+ {[%clk 0:00:16.1]}
45... Kh6 {[%clk 0:00:06.1]} 46. Rg4 {[%clk 0:00:15.3]} 46... Rc2 {[%clk
0:00:04.4]} 47. h3 {[%clk 0:00:15.4]} 47... Kh5 {[%clk 0:00:04.8]} 48. Kh2
{[%clk 0:00:15.6]} 48... h6 {[%clk 0:00:05]} 49. Re4 {[%clk 0:00:14.4]} 49...
Kg6 {[%clk 0:00:04.5]} 50. Re6+ {[%clk 0:00:14.1]} 50... Kh5 {[%clk 0:00:04.3]}
51. Be3 {[%clk 0:00:12]} 51... Rxg2+ {[%clk 0:00:02.6]} 52. Kxg2 {[%clk
0:00:11.2]} 52... Kh4 {[%clk 0:00:03]} 53. Rxh6# {[%clk 0:00:09.3]} 1-0

[Event "*** Titled Tuesday Blitz"]
[Site "Chess.com"]
[Date "2020.11.24"]
[Round "8"]
[White "Rodalquilar"]
[Black "mbachez"]
[Result "1-0"]
[WhiteElo "2672"]
[BlackElo "2441"]
[TimeControl "180+1"]
[EndTime "11:46:53 PST"]
[Termination "Rodalquilar won by resignation"]

1. d4 {[%clk 0:03:00.9]} 1... Nf6 {[%clk 0:02:59.5]} 2. Bf4 {[%clk 0:03:01.1]}
2... c5 {[%clk 0:02:55.3]} 3. e3 {[%clk 0:03:00]} 3... g6 {[%clk 0:02:54.9]} 4.
c3 {[%clk 0:02:59.5]} 4... Bg7 {[%clk 0:02:55]} 5. Nf3 {[%clk 0:02:58.7]} 5...
O-O {[%clk 0:02:55.1]} 6. Be2 {[%clk 0:02:58.2]} 6... b6 {[%clk 0:02:53.8]} 7.
O-O {[%clk 0:02:57]} 7... Bb7 {[%clk 0:02:53.7]} 8. Nbd2 {[%clk 0:02:57.4]} 8...
d6 {[%clk 0:02:53.2]} 9. h3 {[%clk 0:02:57.5]} 9... Nbd7 {[%clk 0:02:52]} 10.
Bh2 {[%clk 0:02:57.8]} 10... a6 {[%clk 0:02:50.3]} 11. a4 {[%clk 0:02:58.2]}
11... Ra7 {[%clk 0:02:50.4]} 12. Qb3 {[%clk 0:02:58]} 12... Qa8 {[%clk
0:02:48.5]} 13. Rfd1 {[%clk 0:02:58.2]} 13... Rb8 {[%clk 0:02:47.6]} 14. Bc4
{[%clk 0:02:31]} 14... Bd5 {[%clk 0:02:40.4]} 15. Bxd5 {[%clk 0:02:27.6]} 15...
Qxd5 {[%clk 0:02:22.3]} 16. Qxd5 {[%clk 0:02:24.8]} 16... Nxd5 {[%clk
0:02:22.3]} 17. Nc4 {[%clk 0:02:18.5]} 17... N5f6 {[%clk 0:02:07.9]} 18. a5
{[%clk 0:01:34.3]} 18... b5 {[%clk 0:02:00.9]} 19. Nb6 {[%clk 0:01:34.5]} 19...
c4 {[%clk 0:01:28.2]} 20. Nxd7 {[%clk 0:01:32]} 20... Rxd7 {[%clk 0:01:26.5]}
21. Nd2 {[%clk 0:01:32.9]} 21... Bh6 {[%clk 0:01:20.9]} 22. Nb1 {[%clk
0:01:22.8]} 22... Ne4 {[%clk 0:01:17.7]} 23. Na3 {[%clk 0:01:20.8]} 23... b4
{[%clk 0:01:07.9]} 24. Nxc4 {[%clk 0:01:12.2]} 24... bxc3 {[%clk 0:01:06.8]} 25.
bxc3 {[%clk 0:01:08.1]} 25... Rc7 {[%clk 0:01:04.2]} 26. Nb6 {[%clk 0:01:06.8]}
26... Nxc3 {[%clk 0:01:00.4]} 27. Re1 {[%clk 0:01:07.2]} 27... Rbb7 {[%clk
0:00:44.6]} 28. Kf1 {[%clk 0:01:07.1]} 28... f5 {[%clk 0:00:42.2]} 29. Rec1
{[%clk 0:01:03.7]} 29... Kf7 {[%clk 0:00:38.8]} 30. Rc2 {[%clk 0:00:57.7]} 30...
Nb5 {[%clk 0:00:37.1]} 31. Rac1 {[%clk 0:00:56.7]} 31... Rxc2 {[%clk 0:00:36]}
32. Rxc2 {[%clk 0:00:57.6]} 32... Rc7 {[%clk 0:00:35.7]} 33. Rxc7 {[%clk
0:00:42.9]} 33... Nxc7 {[%clk 0:00:36.6]} 34. Ke2 {[%clk 0:00:43.8]} 34... e5
{[%clk 0:00:32.2]} 35. dxe5 {[%clk 0:00:42.7]} 35... dxe5 {[%clk 0:00:31.7]} 36.
Bxe5 {[%clk 0:00:42.5]} 36... Nb5 {[%clk 0:00:32.6]} 37. Kd3 {[%clk 0:00:32.4]}
37... Bf8 {[%clk 0:00:31.9]} 38. Kc4 {[%clk 0:00:30]} 38... Na3+ {[%clk
0:00:31.9]} 39. Kd5 {[%clk 0:00:28.6]} 39... Bb4 {[%clk 0:00:30.4]} 40. Bd6
{[%clk 0:00:24.3]} 40... Bxa5 {[%clk 0:00:27.4]} 41. Nd7 {[%clk 0:00:23.4]}
41... Nb5 {[%clk 0:00:25.9]} 42. Be5 {[%clk 0:00:18.9]} 42... Bc3 {[%clk
0:00:24.3]} 43. f4 {[%clk 0:00:07]} 43... a5 {[%clk 0:00:21.8]} 44. Nc5 {[%clk
0:00:04.8]} 44... Bxe5 {[%clk 0:00:20.3]} 45. fxe5 {[%clk 0:00:05]} 45... a4
{[%clk 0:00:20.6]} 46. Kc6 {[%clk 0:00:03.9]} 46... Nc3 {[%clk 0:00:18.8]} 47.
Kd7 {[%clk 0:00:03.3]} 47... Nd5 {[%clk 0:00:18.9]} 48. e6+ {[%clk 0:00:03.1]}
48... Kf6 {[%clk 0:00:18.8]} 49. Nxa4 {[%clk 0:00:03.9]} 49... g5 {[%clk
0:00:17.4]} 50. Nc5 {[%clk 0:00:03.8]} 50... Ne7 {[%clk 0:00:17.5]} 51. e4
{[%clk 0:00:03.8]} 51... f4 {[%clk 0:00:16.7]} 52. e5+ {[%clk 0:00:04.3]} 52...
Kxe5 {[%clk 0:00:17]} 53. Kxe7 {[%clk 0:00:04.8]} 53... Kd5 {[%clk 0:00:17]} 54.
Kf7 {[%clk 0:00:05.3]} 54... f3 {[%clk 0:00:17.7]} 55. gxf3 {[%clk 0:00:05.3]}
55... g4 {[%clk 0:00:18.6]} 56. hxg4 {[%clk 0:00:05.8]} 56... h5 {[%clk
0:00:18.9]} 57. gxh5 {[%clk 0:00:06.7]} 1-0

[Event "*** Titled Tuesday Blitz"]
[Site "Chess.com"]
[Date "2020.11.24"]
[Round "8"]
[White "Vladislav_Chizhikov"]
[Black "RobertoJBM"]
[Result "0-1"]
[WhiteElo "2527"]
[BlackElo "2693"]
[TimeControl "180+1"]
[EndTime "11:46:56 PST"]
[Termination "RobertoJBM won by resignation"]

1. e4 {[%clk 0:03:00.9]} 1... c6 {[%clk 0:02:59.3]} 2. d4 {[%clk 0:03:00.4]}
2... d5 {[%clk 0:03:00.2]} 3. Nc3 {[%clk 0:03:00.8]} 3... dxe4 {[%clk
0:02:58.3]} 4. Nxe4 {[%clk 0:03:01.7]} 4... Nd7 {[%clk 0:02:58.4]} 5. Bd3 {[%clk
0:02:54.7]} 5... Ngf6 {[%clk 0:02:57.9]} 6. Nxf6+ {[%clk 0:02:54.8]} 6... Nxf6
{[%clk 0:02:57.7]} 7. Nf3 {[%clk 0:02:55.2]} 7... Bg4 {[%clk 0:02:57.6]} 8. c3
{[%clk 0:02:54.7]} 8... Qd5 {[%clk 0:02:54.9]} 9. Be2 {[%clk 0:02:53]} 9... e6
{[%clk 0:02:55.1]} 10. Qb3 {[%clk 0:02:50.9]} 10... Qxb3 {[%clk 0:02:52.8]} 11.
axb3 {[%clk 0:02:51.3]} 11... a6 {[%clk 0:02:53.7]} 12. b4 {[%clk 0:02:50.9]}
12... Bxf3 {[%clk 0:02:46.8]} 13. Bxf3 {[%clk 0:02:50]} 13... O-O-O {[%clk
0:02:45.9]} 14. Bf4 {[%clk 0:02:45.6]} 14... Bd6 {[%clk 0:02:45.1]} 15. Bxd6
{[%clk 0:02:42.7]} 15... Rxd6 {[%clk 0:02:46]} 16. Ke2 {[%clk 0:02:42.9]} 16...
Re8 {[%clk 0:02:44.7]} 17. Ra5 {[%clk 0:02:41]} 17... Kc7 {[%clk 0:02:41.7]} 18.
Rha1 {[%clk 0:02:39.3]} 18... Rd7 {[%clk 0:02:41.1]} 19. Re5 {[%clk 0:02:38.2]}
19... Rde7 {[%clk 0:02:40.6]} 20. g3 {[%clk 0:02:37.2]} 20... Nd7 {[%clk
0:02:40]} 21. Re3 {[%clk 0:02:33.8]} 21... e5 {[%clk 0:02:35.4]} 22. dxe5 {[%clk
0:02:28.8]} 22... Nxe5 {[%clk 0:02:35.4]} 23. b3 {[%clk 0:01:58.4]} 23... f5
{[%clk 0:02:30.9]} 24. h4 {[%clk 0:01:50.1]} 24... f4 {[%clk 0:02:14.9]} 25.
gxf4 {[%clk 0:01:37.9]} 25... Ng6 {[%clk 0:02:14.5]} 26. Rxe7+ {[%clk
0:01:37.9]} 26... Rxe7+ {[%clk 0:02:15.4]} 27. Kd2 {[%clk 0:01:35.7]} 27... Nxf4
{[%clk 0:02:15.8]} 28. Rg1 {[%clk 0:01:32.8]} 28... g6 {[%clk 0:01:47.6]} 29.
Rg4 {[%clk 0:01:32.1]} 29... Nh5 {[%clk 0:01:41.8]} 30. Re4 {[%clk 0:01:26.2]}
30... Rxe4 {[%clk 0:01:31.1]} 31. Bxe4 {[%clk 0:01:27.1]} 31... Kd6 {[%clk
0:01:28.7]} 32. Ke3 {[%clk 0:01:25.2]} 32... Ke5 {[%clk 0:01:28.9]} 33. Bf3
{[%clk 0:01:17.2]} 33... Nf4 {[%clk 0:01:26]} 34. c4 {[%clk 0:01:13.5]} 34... h6
{[%clk 0:01:15.5]} 35. Be4 {[%clk 0:01:11.2]} 35... g5 {[%clk 0:01:13.1]} 36.
hxg5 {[%clk 0:01:10.5]} 36... hxg5 {[%clk 0:01:14]} 37. Bf3 {[%clk 0:01:07.7]}
37... Ne6 {[%clk 0:01:12.1]} 38. Bg4 {[%clk 0:01:06.2]} 38... Nd4 {[%clk
0:01:02]} 39. Bc8 {[%clk 0:01:03.2]} 39... Nc2+ {[%clk 0:01:01.1]} 40. Kd3
{[%clk 0:00:48.3]} 40... Nxb4+ {[%clk 0:01:02]} 41. Kc3 {[%clk 0:00:47.9]} 41...
c5 {[%clk 0:00:53.1]} 42. Bxb7 {[%clk 0:00:47.8]} 42... Kf4 {[%clk 0:00:46.1]}
43. Ba8 {[%clk 0:00:44.5]} 43... a5 {[%clk 0:00:43.4]} 44. Bb7 {[%clk
0:00:44.6]} 44... g4 {[%clk 0:00:41.8]} 45. Kd2 {[%clk 0:00:44.2]} 45... Na2
{[%clk 0:00:37.6]} 46. Kc2 {[%clk 0:00:41.5]} 46... g3 {[%clk 0:00:34.2]} 47.
fxg3+ {[%clk 0:00:40.6]} 47... Kxg3 {[%clk 0:00:35.1]} 48. Kd2 {[%clk
0:00:40.3]} 48... Kf4 {[%clk 0:00:34.3]} 49. Kc2 {[%clk 0:00:26.6]} 49... Ke3
{[%clk 0:00:33.5]} 50. Kb2 {[%clk 0:00:26.9]} 50... Nb4 {[%clk 0:00:33.1]} 51.
Kc3 {[%clk 0:00:27.4]} 51... Nd3 {[%clk 0:00:27.6]} 52. Bc8 {[%clk 0:00:24.9]}
52... Nf4 {[%clk 0:00:27]} 53. Kb2 {[%clk 0:00:21.5]} 53... Kd2 {[%clk
0:00:23.5]} 54. Ka3 {[%clk 0:00:21.5]} 54... Kc3 {[%clk 0:00:23.2]} 55. Ka4
{[%clk 0:00:20.6]} 55... Nd3 {[%clk 0:00:23]} 56. Be6 {[%clk 0:00:19.2]} 56...
Nc1 {[%clk 0:00:20.1]} 57. Kxa5 {[%clk 0:00:18.3]} 57... Nxb3+ {[%clk
0:00:20.3]} 58. Kb6 {[%clk 0:00:18.5]} 58... Kb4 {[%clk 0:00:19]} 59. Kc6 {[%clk
0:00:18.2]} 59... Nd4+ {[%clk 0:00:17.9]} 60. Kd5 {[%clk 0:00:17.6]} 60... Nxe6
{[%clk 0:00:18.8]} 61. Kxe6 {[%clk 0:00:17.6]} 61... Kxc4 {[%clk 0:00:19.7]} 62.
Ke5 {[%clk 0:00:18.5]} 62... Kd3 {[%clk 0:00:19.6]} 0-1

[Event "*** Titled Tuesday Blitz"]
[Site "Chess.com"]
[Date "2020.11.24"]
[Round "8"]
[White "Euwe1234"]
[Black "ShapkinAnatoliy"]
[Result "1-0"]
[WhiteElo "2519"]
[BlackElo "2644"]
[TimeControl "180+1"]
[EndTime "11:46:58 PST"]
[Termination "Euwe1234 won on time"]

1. e4 {[%clk 0:03:00.9]} 1... e5 {[%clk 0:02:58.5]} 2. Nf3 {[%clk 0:03:00.5]}
2... Nc6 {[%clk 0:02:58.8]} 3. Bb5 {[%clk 0:03:00.7]} 3... Nf6 {[%clk
0:02:59.1]} 4. O-O {[%clk 0:03:00.3]} 4... Nxe4 {[%clk 0:02:59]} 5. d4 {[%clk
0:02:59.8]} 5... Nd6 {[%clk 0:02:59.4]} 6. Bxc6 {[%clk 0:02:59.9]} 6... dxc6
{[%clk 0:03:00.3]} 7. dxe5 {[%clk 0:03:00.8]} 7... Nf5 {[%clk 0:03:00.5]} 8.
Qxd8+ {[%clk 0:02:56.6]} 8... Kxd8 {[%clk 0:03:01.4]} 9. h3 {[%clk 0:02:56.8]}
9... Ke8 {[%clk 0:03:01.6]} 10. Bf4 {[%clk 0:02:42.2]} 10... h5 {[%clk
0:03:00.8]} 11. Nc3 {[%clk 0:02:35.4]} 11... Be6 {[%clk 0:02:59.9]} 12. Rad1
{[%clk 0:02:34.7]} 12... Be7 {[%clk 0:02:58.4]} 13. Ng5 {[%clk 0:02:31.6]} 13...
Rh6 {[%clk 0:02:57.6]} 14. Rfe1 {[%clk 0:02:31.5]} 14... Rg6 {[%clk 0:02:26.4]}
15. Nxe6 {[%clk 0:02:19.9]} 15... Rxe6 {[%clk 0:02:21.6]} 16. Ne4 {[%clk
0:02:14]} 16... b6 {[%clk 0:02:06.8]} 17. c3 {[%clk 0:02:04.4]} 17... Rd8 {[%clk
0:02:03.7]} 18. Rxd8+ {[%clk 0:01:54.3]} 18... Bxd8 {[%clk 0:02:04.6]} 19. g3
{[%clk 0:01:38.2]} 19... c5 {[%clk 0:01:39.8]} 20. Kg2 {[%clk 0:01:37]} 20...
Be7 {[%clk 0:01:34.9]} 21. a4 {[%clk 0:01:34.9]} 21... Kd7 {[%clk 0:01:33.7]}
22. Rd1+ {[%clk 0:01:33.9]} 22... Kc6 {[%clk 0:01:33.5]} 23. Kf3 {[%clk
0:01:34]} 23... f6 {[%clk 0:00:56.9]} 24. exf6 {[%clk 0:01:30.2]} 24... gxf6
{[%clk 0:00:57.8]} 25. h4 {[%clk 0:00:52.2]} 25... Nd6 {[%clk 0:00:51.5]} 26.
Bxd6 {[%clk 0:00:50]} 26... cxd6 {[%clk 0:00:50]} 27. c4 {[%clk 0:00:50.2]}
27... f5 {[%clk 0:00:38.2]} 28. Ng5 {[%clk 0:00:50]} 28... Re5 {[%clk
0:00:26.4]} 29. Kf4 {[%clk 0:00:49.4]} 29... Re2 {[%clk 0:00:26.5]} 30. f3
{[%clk 0:00:44.6]} 30... Rxb2 {[%clk 0:00:23]} 31. Kxf5 {[%clk 0:00:44.2]} 31...
Rc2 {[%clk 0:00:20.6]} 32. g4 {[%clk 0:00:44]} 32... hxg4 {[%clk 0:00:19.2]} 33.
fxg4 {[%clk 0:00:44.9]} 33... Rxc4 {[%clk 0:00:12]} 34. h5 {[%clk 0:00:44.3]}
34... Rc2 {[%clk 0:00:12.3]} 35. h6 {[%clk 0:00:43.9]} 35... Rh2 {[%clk
0:00:12.4]} 36. Nf7 {[%clk 0:00:40]} 36... d5 {[%clk 0:00:06.6]} 37. Kg6 {[%clk
0:00:39.5]} 37... d4 {[%clk 0:00:05.8]} 38. h7 {[%clk 0:00:39.5]} 38... Kd5
{[%clk 0:00:04]} 39. h8=Q {[%clk 0:00:39.3]} 39... Rxh8 {[%clk 0:00:04.9]} 40.
Nxh8 {[%clk 0:00:40]} 40... c4 {[%clk 0:00:05.5]} 41. Kf5 {[%clk 0:00:40.2]}
41... c3 {[%clk 0:00:05.6]} 42. Ng6 {[%clk 0:00:40.3]} 42... Ba3 {[%clk
0:00:03.8]} 43. Nf4+ {[%clk 0:00:40.2]} 43... Kc4 {[%clk 0:00:03.5]} 44. Ne2
{[%clk 0:00:09.8]} 44... d3 {[%clk 0:00:03.6]} 45. Nxc3 {[%clk 0:00:10]} 45...
Kxc3 {[%clk 0:00:04.5]} 46. Ke4 {[%clk 0:00:10.3]} 46... d2 {[%clk 0:00:03.7]}
47. Ke3 {[%clk 0:00:10.6]} 47... Bc5+ {[%clk 0:00:02.7]} 48. Ke2 {[%clk
0:00:10.8]} 48... Kb4 {[%clk 0:00:02.8]} 49. Rxd2 {[%clk 0:00:10.9]} 49... Kxa4
{[%clk 0:00:03.4]} 50. g5 {[%clk 0:00:11.2]} 50... Kb5 {[%clk 0:00:02.8]} 51. g6
{[%clk 0:00:11.6]} 51... Bf8 {[%clk 0:00:02.9]} 52. Rd7 {[%clk 0:00:11.4]} 52...
a5 {[%clk 0:00:02.9]} 53. g7 {[%clk 0:00:11.8]} 53... Bxg7 {[%clk 0:00:02.1]}
54. Rxg7 {[%clk 0:00:12.7]} 54... Kb4 {[%clk 0:00:02.2]} 55. Kd2 {[%clk
0:00:13.6]} 1-0